bitfinex-derivatives/quotes_ETHF0:USTF0_20240920
["timestamp","ask_amount","ask_price","bid_price","bid_amount"]
[1726821137658,4.3036,2550.6,2550.1,0.39207]
[1726821137954,3.2078,2550.5,2550.0,0.39209]
[1726821138160,0.39205,2550.3,2549.9,3.06]
[1726821138461,0.39205,2550.3,2550.0,0.39209]
[1726821138656,0.3761,2550.4,2549.9,3.06]
[1726821138861,0.39208,2550.1,2549.9,3.06]
[1726821139061,0.3775,2550.0,2549.9,3.06]
[1726821139361,0.76959,2550.0,2549.9,3.06]
[1726821139665,0.76961,2550.0,2549.7,3.4347]
[1726821140068,0.3775,2550.0,2549.7,3.82683]
[1726821140255,0.7696,2550.0,2549.7,3.06]
[1726821140764,0.3775,2550.0,2549.9,3.45211]
[1726821142162,0.3761,2550.4,2549.9,6.9816]
[1726821142468,0.3761,2550.4,2550.1,3.06]
[1726821142469,0.76813,2550.4,2550.1,3.06]
[1726821143269,1.17641,2550.6,2550.3,3.45204]
[1726821143463,0.7844,2550.6,2550.3,3.06]
[1726821143663,0.39202,2550.5,2550.2,3.06]
[1726821143867,0.7844,2550.6,2550.2,3.06]
[1726821144068,0.39203,2550.4,2550.2,3.06]
[1726821144367,0.39203,2550.5,2550.2,3.06]
[1726821144564,0.39203,2550.5,2550.4,3.06]
[1726821145965,0.7844,2550.6,2550.4,3.06]
[1726821145966,1.1764,2550.6,2550.4,3.06]
[1726821146156,1.1764,2550.6,2550.5,3.06]
[1726821146157,0.7844,2550.6,2550.5,3.06]
[1726821146359,1.1764,2550.6,2550.3,3.45204]
[1726821146866,4.7052,2550.6,2550.1,3.06]
[1726821147074,0.39205,2550.3,2550.1,3.06]
[1726821147367,0.7844,2550.6,2550.1,3.06]
[1726821147764,0.39206,2550.2,2550.1,3.06]
[1726821147965,3.2078,2550.3,2550.1,3.06]
[1726821148271,3.59985,2550.3,2550.1,3.06]
[1726821148473,0.39205,2550.3,2550.1,3.06]
[1726821148974,3.59985,2550.3,2550.1,3.06]
[1726821149471,0.39205,2550.3,2550.1,3.06]
[1726821149665,3.59985,2550.3,2550.1,3.06]
[1726821150770,3.2078,2550.3,2550.1,3.45208]
[1726821151067,0.39203,2550.5,2550.1,3.45208]
[1726821151259,0.39203,2550.5,2550.3,3.06]
[1726821151464,0.7844,2550.6,2550.3,3.06]
[1726821151676,1.17641,2550.6,2550.3,3.45205]
[1726821151966,0.39197,2550.8,2550.5,3.06]
[1726821152169,0.7926,2550.8,2550.5,3.06]
[1726821152360,1.18457,2550.8,2550.5,3.452]
[1726821152561,0.3907,2551.0,2550.7,3.06]
[1726821152867,0.39194,2551.0,2550.8,0.39196]
[1726821153171,0.39194,2551.0,2550.7,3.45198]
[1726821153871,0.7926,2551.1,2550.7,3.06]
[1726821154072,0.39194,2551.0,2550.7,3.06]
[1726821154262,1.18453,2551.1,2550.8,0.39196]
[1726821154465,0.39194,2551.0,2550.8,0.39196]
[1726821154769,1.18453,2551.1,2550.8,0.39196]
[1726821155269,0.7926,2551.1,2550.7,3.06]
[1726821155472,0.39195,2551.0,2550.7,3.45198]
[1726821156266,0.7926,2551.1,2550.7,3.45198]
[1726821156467,0.39196,2550.9,2550.7,3.45198]
[1726821156762,0.39195,2551.0,2550.7,3.45198]
[1726821157176,0.39195,2551.0,2550.8,0.39197]
[1726821157765,0.39195,2551.0,2550.7,6.65978]
[1726821157976,0.39195,2551.0,2550.8,0.80197]
[1726821159278,3.2078,2551.5,2550.9,3.06]
[1726821159573,3.2078,2551.5,2551.4,3.06]
[1726821159777,3.59967,2551.5,2551.4,3.06]
[1726821159965,7.51887,2551.5,2551.4,3.06]
[1726821160170,7.127,2551.5,2551.3,3.06]
[1726821160465,0.39189,2551.4,2551.3,3.06]
[1726821160667,0.39189,2551.4,2550.5,4.198]
[1726821160668,0.39197,2550.9,2550.5,4.198]
[1726821160874,0.97982,2551.1,2550.5,3.8342]
[1726821161071,0.392,2550.6,2550.5,3.4498]
[1726821161874,0.3928,2550.7,2550.5,3.4498]
[1726821161875,0.78479,2550.7,2550.5,3.4498]
[1726821163675,7.1286,2550.6,2550.1,0.3776]
[1726821163878,0.39204,2550.4,2550.0,4.198]
[1726821164079,0.39205,2550.3,2550.0,4.198]
[1726821164277,0.39206,2550.2,2549.9,3.4706]
[1726821164470,3.5805,2550.3,2549.9,3.4706]
[1726821164677,0.39209,2550.1,2549.9,3.4706]
[1726821164978,0.39209,2550.1,2549.9,3.06]
[1726821165178,0.39209,2550.0,2549.9,3.06]
[1726821165382,3.5805,2550.3,2549.8,3.2078]
[1726821165383,0.39208,2550.1,2549.8,3.2078]
[1726821166474,3.2078,2549.9,2549.5,4.198]
[1726821166680,0.39215,2549.6,2549.5,4.198]
[1726821166869,0.3727,2549.8,2549.3,3.06]
[1726821167076,3.2078,2549.9,2549.6,3.06]
[1726821167077,3.59992,2549.9,2549.6,3.06]
[1726821167269,0.39209,2550.1,2549.8,3.06]
[1726821167674,0.39209,2550.1,2549.7,0.4085]
[1726821167675,0.39211,2550.0,2549.7,0.4085]
[1726821167884,0.39213,2549.8,2549.3,0.3926]
[1726821168180,0.39215,2549.7,2549.4,0.4085]
[1726821168982,0.39215,2549.7,2549.0,2.0491451]
[1726821168983,7.1302,2549.6,2549.0,2.56143138]
[1726821169173,0.39223,2549.2,2548.9,4.9991]
[1726821169481,0.39223,2549.2,2548.9,0.8011]
[1726821169680,3.2078,2549.3,2548.9,0.8011]
[1726821169878,0.3952,2549.5,2548.9,0.8011]
[1726821170077,3.2078,2549.3,2548.9,0.8011]
[1726821170477,0.39222,2549.2,2548.9,0.8011]
[1726821170890,3.60001,2549.3,2548.9,0.8011]
[1726821171076,0.39222,2549.2,2548.9,0.8011]
[1726821171878,3.2078,2549.3,2548.9,0.8011]
[1726821172086,0.39222,2549.2,2548.9,0.8011]
[1726821173783,0.39224,2549.1,2548.9,0.4085]
[1726821173979,0.78514,2549.1,2548.9,0.4085]
[1726821174197,0.3929,2549.1,2548.9,0.4085]
[1726821174384,0.3929,2549.1,2548.6,4.16231]
[1726821174385,0.39231,2548.7,2548.4,5.62167255]
[1726821174576,3.2078,2548.7,2548.3,0.3801]
[1726821174782,0.78522,2548.6,2548.3,0.3801]
[1726821174980,0.78521,2548.6,2548.3,0.3801]
[1726821175181,0.78522,2548.6,2548.3,0.3801]
[1726821175685,0.39233,2548.5,2548.3,0.3801]
[1726821178286,3.924,2548.4,2548.1,3.2078]
[1726821178586,0.39242,2547.9,2547.6,4.198]
[1726821178787,0.39242,2547.9,2547.4,4.35928]
[1726821179290,3.2078,2547.8,2547.0,3.77]
[1726821179517,0.39245,2547.7,2547.2,0.39251]
[1726821179790,0.39245,2547.7,2547.2,0.39252]
[1726821180188,0.39245,2547.7,2547.1,0.3867]
[1726821180189,3.2078,2547.8,2547.1,0.3867]
[1726821180388,0.98098,2548.1,2547.1,0.3867]
[1726821180389,3.2078,2547.4,2547.1,0.3867]
[1726821180688,0.39258,2546.9,2546.3,5.19065]
[1726821180893,3.60039,2546.8,2546.4,0.7806]
[1726821181185,3.2078,2546.8,2546.4,0.7806]
[1726821181389,3.2078,2546.5,2546.4,0.7806]
[1726821182489,3.2078,2546.8,2546.4,14.4778]
[1726821182691,3.2078,2547.2,2546.7,3.77]
[1726821182991,3.2078,2547.2,2546.9,0.39257]
[1726821183381,3.2078,2547.2,2546.8,0.77888]
[1726821183588,3.60032,2547.2,2546.8,0.77888]
[1726821184785,3.2078,2547.2,2546.8,0.77888]
[1726821185184,3.60033,2547.2,2546.8,0.77888]
[1726821185689,3.2078,2547.2,2546.8,0.3863]
[1726821186091,3.2078,2547.2,2546.9,0.39256]
[1726821186289,3.2078,2547.2,2547.0,0.4076]
[1726821186487,3.60033,2547.2,2547.0,0.4076]
[1726821186794,3.2078,2547.2,2547.0,0.4076]
[1726821187285,3.2078,2547.2,2547.0,0.80015]
[1726821189402,3.2078,2547.2,2547.1,0.39254]
[1726821190279,3.2078,2547.2,2547.0,0.80015]
[1726821190483,3.2078,2547.2,2547.1,0.39254]
[1726821192591,3.2078,2547.2,2547.0,0.80015]
[1726821192790,3.2078,2547.2,2547.0,0.4076]
[1726821193493,3.2078,2547.2,2547.0,0.80015]
[1726821195596,3.2078,2547.2,2546.5,0.18188675]
[1726821195597,3.9264,2547.1,2546.5,0.39262]
[1726821195795,3.2078,2546.9,2546.5,0.39262]
[1726821196094,0.3926,2546.8,2546.5,0.39262]
[1726821196293,0.39259,2546.8,2546.5,0.39262]
[1726821196495,0.39269,2546.2,2545.9,0.39272]
[1726821196704,7.6964,2546.7,2545.4,4.18981]
[1726821196705,1.94713598,2546.3,2545.4,4.18981]
[1726821196888,1.94713598,2546.3,2545.5,0.98197]
[1726821197088,0.39268,2546.2,2545.9,0.39271]
[1726821197294,0.3927,2546.1,2545.8,0.39273]
[1726821197593,5.15065,2546.7,2545.3,2.35444059]
[1726821197594,3.60052,2546.0,2545.6,0.39276]
[1726821197991,3.2078,2546.0,2545.3,1.2028]
[1726821198296,3.2078,2546.0,2545.8,0.39273]
[1726821198591,3.2078,2546.0,2545.4,6.9778]
[1726821198892,3.2078,2546.3,2545.5,0.98197]
[1726821199092,0.3745,2546.5,2546.2,0.39267]
[1726821199093,0.76714,2546.5,2546.2,0.39267]
[1726821200591,0.76714,2546.5,2546.1,0.39268]
[1726821200992,0.3745,2546.5,2546.2,0.39266]
[1726821201894,0.76713,2546.5,2546.2,0.39266]
[1726821202398,0.3745,2546.5,2546.3,0.39265]
[1726821202592,0.3745,2546.5,2545.8,0.98186]
[1726821202787,0.3745,2546.5,2546.3,0.39265]
[1726821203398,0.76713,2546.5,2546.2,0.39267]
[1726821203595,0.3745,2546.5,2545.9,1.1608]
[1726821203796,0.76713,2546.5,2546.2,0.39266]
[1726821204694,0.76713,2546.5,2546.3,0.39266]
[1726821205294,0.76713,2546.5,2546.2,0.39267]
[1726821206399,0.3745,2546.5,2546.3,0.39266]
[1726821207599,0.39259,2546.8,2546.1,3.2078]
[1726821207800,3.60038,2546.9,2546.6,0.39261]
[1726821208095,3.60038,2546.9,2546.1,0.98174]
[1726821208096,3.60038,2546.9,2546.3,3.06]
[1726821208294,0.39258,2546.9,2546.3,3.06]
[1726821208495,0.39258,2546.9,2546.6,0.39261]
[1726821210100,0.39258,2546.9,2546.7,0.3926]
[1726821210294,0.39258,2546.9,2546.6,0.3926]
[1726821210694,0.39259,2546.8,2546.6,0.3926]
[1726821210894,3.60038,2546.9,2546.6,0.3926]
[1726821211494,3.2078,2546.9,2546.4,0.8086]
[1726821211706,3.60037,2546.9,2546.4,0.8086]
[1726821212201,3.60037,2546.9,2546.6,0.39261]
[1726821213909,0.98147,2546.8,2546.3,0.069]
[1726821214099,3.60045,2546.4,2546.3,0.069]
[1726821214506,10.58765,2546.4,2546.3,0.069]
[1726821214804,10.58765,2546.4,2545.6,4.9676]
[1726821214805,0.39272,2545.9,2545.6,4.9676]
[1726821215005,0.39272,2546.0,2545.6,1.16237]
[1726821215207,0.39275,2545.8,2545.6,0.7696]
[1726821215409,0.39276,2545.7,2545.6,0.3893]
[1726821215613,0.39275,2545.8,2545.6,0.3893]
[1726821216007,0.4069,2546.0,2545.6,0.3893]
[1726821216311,3.60056,2545.7,2545.5,0.3913]
[1726821216610,3.2078,2545.7,2545.5,0.3913]
[1726821216825,3.60056,2545.7,2545.5,0.3913]
[1726821217312,0.39281,2545.4,2544.9,0.39287]
[1726821217503,3.60061,2545.4,2544.9,0.79337]
[1726821217700,3.6006,2545.4,2544.9,0.79337]
[1726821217907,3.2078,2545.4,2544.9,0.4005]
[1726821218415,3.2078,2545.4,2545.0,0.39286]
[1726821218611,3.2078,2545.4,2544.9,0.79337]
[1726821220014,3.2078,2545.4,2545.0,0.39286]
[1726821220310,3.60061,2545.4,2544.9,0.79337]
[1726821220510,3.2078,2545.4,2545.1,0.39284]
[1726821220709,0.39277,2545.6,2544.9,0.4005]
[1726821220900,3.60056,2545.7,2545.3,0.39282]
[1726821221104,3.60056,2545.7,2544.9,0.4005]
[1726821221105,3.2078,2545.7,2544.9,0.4005]
[1726821221307,0.3928,2545.4,2545.0,0.39285]
[1726821221509,0.3873,2545.3,2545.0,0.39285]
[1726821221905,0.3873,2545.3,2545.0,0.39286]
[1726821222409,0.3873,2545.3,2544.7,0.7916]
[1726821222410,0.39286,2545.0,2544.7,0.7916]
[1726821222809,0.3873,2545.3,2544.7,0.4088]
[1726821223011,0.3873,2545.3,2544.6,7.8124]
[1726821223012,0.3929,2544.8,2544.6,7.4058]
[1726821223205,0.79631,2544.7,2544.6,3.2078]
[1726821223710,0.79631,2544.7,2544.3,0.392]
[1726821223711,4.333,2544.7,2544.3,0.392]
[1726821223905,0.79632,2544.7,2544.3,0.78497]
[1726821225007,0.39294,2544.6,2544.2,0.79958]
[1726821225209,0.39295,2544.5,2544.2,0.4066]
[1726821225414,0.39295,2544.5,2544.2,0.79959]
[1726821225708,3.9304,2544.5,2543.7,3.2078]
[1726821225903,3.2078,2544.6,2544.1,0.393]
[1726821226106,3.60073,2544.6,2544.2,0.39299]
[1726821226315,3.2078,2544.6,2543.9,0.4014]
[1726821226512,3.2078,2544.6,2544.4,0.39295]
[1726821226723,3.60073,2544.6,2544.3,0.39296]
[1726821227217,3.60073,2544.6,2543.9,0.4014]
[1726821227513,3.60073,2544.6,2544.3,0.39296]
[1726821228516,3.60073,2544.6,2544.4,0.39296]
[1726821228713,3.2078,2544.6,2544.2,0.39298]
[1726821229113,0.39294,2544.5,2544.3,0.39297]
[1726821229315,3.2078,2544.6,2543.9,0.4014]
[1726821229515,3.60073,2544.6,2544.4,0.39295]
[1726821229707,3.60073,2544.6,2544.3,0.39297]
[1726821230107,0.393,2544.2,2543.9,0.4014]
[1726821230313,3.2078,2544.6,2543.9,0.4014]
[1726821230616,0.39297,2544.3,2544.1,0.393]
[1726821230808,3.2078,2544.6,2544.2,0.39298]
[1726821230809,0.39296,2544.4,2544.2,0.39298]
[1726821231012,3.2078,2544.6,2543.9,0.4014]
[1726821231212,3.60073,2544.6,2544.4,0.39295]
[1726821231410,0.39295,2544.5,2544.3,0.39297]
[1726821233917,3.2078,2544.6,2544.3,0.39297]
[1726821233918,4.32336,2544.4,2544.3,0.39297]
[1726821234121,0.39295,2544.5,2544.0,0.98255]
[1726821234331,0.39295,2544.5,2544.3,0.39296]
[1726821234510,0.39296,2544.4,2544.3,0.39296]
[1726821234922,0.39295,2544.5,2544.3,0.39296]
[1726821235215,3.2078,2544.6,2544.2,0.39298]
[1726821235420,3.2078,2544.6,2544.2,0.39299]
[1726821235621,0.39297,2544.3,2544.1,0.39299]
[1726821236823,0.39297,2544.3,2544.2,0.39299]
[1726821237228,0.39297,2544.3,2544.1,0.39299]
[1726821237530,0.39294,2544.5,2543.9,1.38396]
[1726821237717,0.39296,2544.4,2543.9,1.38396]
[1726821237925,0.39296,2544.4,2544.2,0.39298]
[1726821238222,0.39298,2544.3,2543.9,0.4014]
[1726821238430,0.39298,2544.3,2544.1,0.393]
[1726821238722,0.39298,2544.3,2544.1,0.39299]
[1726821238915,4.45858,2544.5,2543.9,0.4014]
[1726821239119,0.393,2544.2,2544.0,0.39301]
[1726821239622,0.393,2544.2,2544.1,0.393]
[1726821240216,4.45858,2544.5,2543.9,0.79442]
[1726821240217,0.39301,2544.1,2543.9,0.79442]
[1726821240425,0.39301,2544.1,2544.0,0.39302]
[1726821240628,0.39301,2544.1,2543.9,0.4014]
[1726821240922,0.4062,2544.5,2544.0,0.98255]
[1726821241119,0.79915,2544.5,2544.3,0.39296]
[1726821241322,0.4062,2544.5,2544.3,0.39296]
[1726821241515,0.79915,2544.5,2543.9,4.45397]
[1726821241722,0.79915,2544.5,2544.3,0.39296]
[1726821241923,3.2078,2544.6,2544.5,0.39294]
[1726821242119,7.53034,2544.6,2544.4,0.39295]
[1726821242325,3.2078,2544.6,2544.5,0.79564]
[1726821242624,3.60073,2544.6,2544.5,0.79564]
[1726821243126,3.2078,2544.6,2544.5,0.79564]
[1726821243523,0.39287,2545.0,2544.8,0.39288]
[1726821243723,3.6153,2545.1,2544.8,0.39288]
[1726821244122,3.6153,2545.1,2544.5,0.4027]
[1726821244123,4.59744,2545.1,2544.5,0.4027]
[1726821244323,4.59744,2545.1,2544.7,0.39291]
[1726821244324,0.3929,2544.8,2544.7,0.39291]
[1726821244523,3.46288,2545.0,2544.5,0.4027]
[1726821244727,0.39289,2544.9,2544.7,0.3929]
[1726821245327,0.39289,2544.9,2544.8,0.39289]
[1726821245627,0.3929,2544.8,2544.5,0.4027]
[1726821245826,0.39288,2544.9,2544.7,0.3929]
[1726821246124,0.39295,2544.5,2544.4,0.39296]
[1726821246521,0.39295,2544.5,2544.3,0.39296]
[1726821246721,0.39296,2544.4,2544.3,0.39296]
[1726821247327,0.39296,2544.4,2544.2,1.14638]
[1726821248034,0.39297,2544.3,2544.2,0.3803]
[1726821248224,0.39297,2544.3,2543.9,0.39303]
[1726821248225,0.98244,2544.3,2543.9,0.39303]
[1726821248527,0.98244,2544.3,2543.6,4.198]
[1726821248528,0.98251,2544.1,2543.7,0.4088]
[1726821248725,0.39304,2543.9,2543.7,0.4088]
[1726821249134,0.98251,2544.1,2543.7,0.4088]
[1726821249337,0.39305,2543.8,2543.6,0.77537]
[1726821249822,0.39304,2543.9,2543.6,0.3823]
[1726821250019,0.39305,2543.8,2543.6,0.77537]
[1726821250225,0.39306,2543.8,2543.6,0.77538]
[1726821251225,4.32427,2543.7,2543.5,0.39309]
[1726821251426,0.39308,2543.6,2543.3,3.8682]
[1726821251623,6.2778,2543.9,2543.3,0.7982]
[1726821251624,0.39308,2543.7,2543.3,0.7982]
[1726821251828,0.39308,2543.6,2543.4,0.3931]
[1726821252236,0.3931,2543.5,2543.3,1.19132]
[1726821252430,0.98263,2543.8,2543.3,0.7982]
[1726821252634,0.3931,2543.5,2543.3,1.19131]
[1726821252829,0.98263,2543.8,2543.3,0.7982]
[1726821253328,0.3873,2544.0,2543.4,3.07]
[1726821253530,0.78032,2544.0,2543.8,0.39304]
[1726821253732,0.39303,2543.9,2543.7,0.39306]
[1726821253930,0.39305,2543.8,2543.6,0.39307]
[1726821254431,0.39304,2543.9,2543.7,0.39306]
[1726821255137,0.39305,2543.8,2543.6,0.39307]
[1726821256036,0.3873,2544.0,2543.7,0.39305]
[1726821256237,0.39304,2543.9,2543.7,0.39305]
[1726821256638,3.2078,2544.2,2543.8,3.9312]
[1726821256832,3.60079,2544.2,2544.1,0.393]
[1726821257029,3.9829,2544.5,2544.4,0.39296]
[1726821257235,4.37585,2544.5,2544.0,0.98255]
[1726821257436,3.2078,2544.5,2544.4,0.39296]
[1726821258135,0.39292,2544.7,2544.5,0.39293]
[1726821258333,0.39292,2544.7,2544.6,0.39293]
[1726821258535,3.9296,2544.7,2544.6,0.39293]
[1726821258731,3.9296,2544.7,2544.5,0.39293]
[1726821258732,4.32252,2544.7,2544.5,0.39293]
[1726821258928,3.8451,2544.8,2544.5,0.39293]
[1726821259124,0.39293,2544.6,2544.5,0.39293]
[1726821259534,4.32253,2544.6,2544.5,0.39293]
[1726821259732,3.9296,2544.6,2544.5,0.39293]
[1726821260230,3.9296,2544.6,2544.1,3.07]
[1726821260536,3.07,2544.6,2544.1,1.02457255]
[1726821260835,3.07,2544.6,2543.9,0.3846]
[1726821260836,4.05242,2544.4,2543.9,0.3846]
[1726821261024,3.07,2544.4,2544.0,0.39301]
[1726821261223,3.07,2544.4,2543.9,0.3846]
[1726821261427,3.07,2544.4,2544.2,0.39298]
[1726821261639,0.39297,2544.3,2544.1,0.39299]
[1726821264840,3.07,2544.4,2543.9,1.80219255]
[1726821265027,0.393,2544.2,2544.0,0.39302]
[1726821265227,0.39301,2544.1,2543.9,0.77763]
[1726821265432,0.39301,2544.1,2543.9,1.80220255]
[1726821265643,0.39301,2544.1,2543.9,0.77763]
[1726821266140,0.393,2544.2,2544.0,0.39302]
[1726821266539,0.78858,2544.3,2544.1,0.393]
[1726821266835,7.26014,2544.6,2544.2,0.39299]
[1726821267141,7.26025,2544.3,2543.5,5.22257255]
[1726821267342,4.19035,2544.0,2543.6,0.39307]
[1726821267639,0.98259,2543.9,2543.5,0.39309]
[1726821267840,3.2078,2544.0,2543.6,0.39307]
[1726821268034,0.39306,2543.7,2543.5,0.39308]
[1726821268228,3.2078,2544.0,2543.4,0.3809]
[1726821268431,3.2078,2544.0,2543.5,3.07]
[1726821268631,3.2078,2544.0,2543.8,0.39304]
[1726821268632,0.39303,2544.0,2543.8,0.39304]
[1726821269141,0.39303,2544.0,2543.5,4.09457255]
[1726821269142,0.39301,2544.1,2543.9,0.39303]
[1726821269340,3.2078,2544.3,2543.6,2.00726255]
[1726821269543,3.2078,2544.3,2544.1,0.393]
[1726821269741,0.39299,2544.2,2544.0,0.39301]
[1726821270039,3.2078,2544.3,2544.0,0.39301]
[1726821270245,0.393,2544.2,2544.0,0.39302]
[1726821270432,0.39302,2544.0,2543.9,0.3729]
[1726821270745,0.8229,2544.1,2543.9,0.39303]
[1726821270935,3.60078,2544.3,2544.1,0.393]
[1726821271134,3.60077,2544.3,2544.1,0.39299]
[1726821271334,3.60077,2544.3,2544.2,0.39299]
[1726821271634,3.60077,2544.3,2544.1,0.39299]
[1726821272138,3.60077,2544.3,2544.2,0.39299]
[1726821272443,3.2078,2544.3,2544.2,0.39299]
[1726821272644,3.2078,2544.3,2543.8,2.41918255]
[1726821272645,3.60078,2544.3,2543.8,1.43657255]
[1726821272835,3.60078,2544.3,2544.1,0.39299]
[1726821273034,0.39299,2544.2,2544.1,0.39299]
[1726821273239,3.2078,2544.3,2543.8,1.43657255]
[1726821273540,0.39301,2544.1,2544.0,0.39302]
[1726821273741,0.39301,2544.1,2543.9,0.39302]
[1726821274238,0.39301,2544.1,2544.0,1.02457255]
[1726821274443,3.2078,2544.3,2544.0,0.39301]
[1726821274633,3.2078,2544.3,2543.9,1.02457255]
[1726821274842,3.60078,2544.3,2544.0,1.02457255]
[1726821275040,0.39299,2544.2,2544.1,0.79569]
[1726821275241,0.39299,2544.2,2544.1,0.4027]
[1726821276045,3.2078,2544.3,2544.2,0.39299]
[1726821276344,3.2078,2544.3,2544.1,1.82026255]
[1726821276543,3.60078,2544.3,2544.1,1.42727255]
[1726821276744,3.2078,2544.3,2544.2,0.39299]
[1726821277136,3.2078,2544.3,2544.1,1.82027255]
[1726821277333,3.60078,2544.3,2544.2,0.39299]
[1726821277537,3.2078,2544.3,2544.2,0.39299]
[1726821278241,3.60077,2544.3,2544.2,0.39299]
[1726821278550,3.2078,2544.3,2544.2,0.39299]
[1726821278940,0.39299,2544.2,2544.1,1.02457255]
[1726821279444,3.2078,2544.3,2544.0,1.80578255]
[1726821279841,0.393,2544.1,2544.0,0.3882]
[1726821280044,0.393,2544.1,2544.0,1.41277255]
[1726821280350,0.9825,2544.2,2543.9,1.02457255]
[1726821280540,0.39302,2544.0,2543.9,1.02457255]
[1726821281150,0.39302,2544.0,2543.8,4.39765]
[1726821281445,0.39303,2544.0,2543.8,4.39764]
[1726821281644,0.39303,2543.9,2543.8,4.0046]
[1726821282145,0.39303,2543.9,2543.8,0.3848]
[1726821282349,0.39305,2543.8,2543.6,4.59107]
[1726821282545,3.2078,2544.0,2543.5,1.81667255]
[1726821282546,4.19037,2544.0,2543.5,1.81667255]
[1726821282744,3.2078,2544.0,2543.5,0.7921]
[1726821282951,3.2078,2544.0,2543.5,1.81667255]
[1726821283248,0.39304,2543.9,2543.7,0.39306]
[1726821283843,0.39303,2543.9,2543.7,0.39306]
[1726821284044,3.2078,2544.0,2543.4,1.02457255]
[1726821284341,0.3931,2543.5,2543.3,0.39312]
[1726821284940,0.39312,2543.4,2543.3,0.39313]
[1726821285140,0.39312,2543.4,2543.2,0.80474]
[1726821286153,0.39311,2543.4,2543.2,0.4116]
[1726821286543,0.39311,2543.4,2543.2,0.80473]
[1726821286754,0.39311,2543.4,2543.3,0.39313]
[1726821287048,0.39311,2543.4,2543.2,0.80473]
[1726821287438,0.3931,2543.5,2543.3,0.39312]
[1726821287642,0.7883,2543.6,2543.2,0.4116]
[1726821287848,3.2078,2543.7,2543.2,3.4816]
[1726821288156,3.2078,2544.0,2543.9,0.39303]
[1726821288350,1.77769,2544.2,2543.9,0.39303]
[1726821288556,0.39302,2544.0,2543.8,0.39304]
[1726821288746,0.39302,2544.0,2543.8,1.41761255]
[1726821289050,1.77769,2544.2,2543.9,0.39303]
[1726821289051,0.39301,2544.1,2543.9,0.39303]
[1726821289250,0.393,2544.2,2544.0,0.39302]
[1726821289739,0.39299,2544.2,2544.0,0.39302]
[1726821289939,0.39302,2544.1,2543.9,0.39302]
[1726821290342,3.2078,2544.1,2543.8,1.02457255]
[1726821290542,4.19033,2544.1,2543.7,2.18687255]
[1726821290748,0.39304,2543.9,2543.7,2.18687255]
[1726821290950,0.39304,2543.9,2543.7,2.57992255]
[1726821291246,0.39305,2543.8,2543.7,1.1623]
[1726821291450,0.39306,2543.7,2543.6,1.02457255]
[1726821291662,0.39308,2543.6,2543.5,1.02457255]
[1726821291847,0.39307,2543.7,2543.5,0.39309]
[1726821292049,0.39308,2543.6,2543.4,1.79907255]
[1726821292249,0.3931,2543.5,2543.4,1.02457255]
[1726821292444,0.39311,2543.4,2543.3,5.22257255]
[1726821292649,0.3931,2543.5,2543.3,5.61570255]
[1726821293053,0.3931,2543.5,2543.4,1.02457255]
[1726821293247,0.9827,2543.7,2543.3,5.61570255]
[1726821293248,0.39311,2543.4,2543.3,5.61570255]
[1726821293852,0.39311,2543.5,2543.3,5.22257255]
[1726821294051,0.39311,2543.4,2543.3,5.61570255]
[1726821294262,4.59674,2543.8,2543.3,5.22257255]
[1726821294454,0.3931,2543.5,2543.3,5.61569255]
[1726821295350,4.59674,2543.8,2543.4,1.41767255]
[1726821295560,0.39308,2543.7,2543.5,0.39309]
[1726821295765,3.6141,2543.8,2543.4,1.02457255]
[1726821296152,0.98269,2543.7,2543.3,1.02457255]
[1726821296353,0.39311,2543.4,2543.3,1.41769255]
[1726821296553,0.39311,2543.4,2543.3,1.02457255]
[1726821296959,0.39311,2543.4,2543.2,2.17030255]
[1726821297161,0.39309,2543.6,2543.4,0.39311]
[1726821297362,0.3931,2543.5,2543.3,1.02457255]
[1726821297567,0.98268,2543.7,2543.3,1.41769255]
[1726821297860,3.6141,2543.8,2543.4,0.39311]
[1726821298071,0.3931,2543.5,2543.3,1.41769255]
[1726821298368,0.39311,2543.5,2543.3,1.41769255]
[1726821298664,0.39311,2543.5,2543.3,0.39312]
[1726821298965,0.98267,2543.7,2543.3,1.41769255]
[1726821299161,0.3931,2543.5,2543.3,0.39312]
[1726821299566,0.98267,2543.7,2543.4,0.3931]
[1726821299767,0.3931,2543.5,2543.3,0.39311]
[1726821300161,0.39312,2543.4,2543.3,0.39313]
[1726821300360,0.39308,2543.6,2543.2,1.77717255]
[1726821300671,3.2078,2543.7,2543.6,0.39307]
[1726821300854,3.2078,2543.7,2543.6,0.4006]
[1726821301060,3.2078,2543.7,2543.6,0.79368]
[1726821301258,3.60086,2543.7,2543.6,0.4006]
[1726821301454,0.39308,2543.6,2543.4,1.41767255]
[1726821301667,0.3931,2543.5,2543.2,1.40027255]
[1726821301868,0.3931,2543.5,2543.2,1.79341255]
[1726821302066,1.36543,2543.6,2543.2,1.79341255]
[1726821302567,0.98275,2543.5,2543.2,0.3757]
[1726821302775,0.3931,2543.5,2543.3,0.39312]
[1726821303064,0.3827,2543.6,2543.2,1.40027255]
[1726821303571,0.77579,2543.6,2543.2,0.3757]
[1726821303866,0.39309,2543.6,2543.4,0.3931]
[1726821304057,0.39308,2543.6,2543.5,0.77199]
[1726821304260,3.2078,2543.7,2543.5,0.3789]
[1726821304565,0.39308,2543.6,2543.5,0.3789]